Cogmind - Beta 14 @@@ ROGUE MODE // 2024.10.12 @ 22:10:33 Player: APerTAS Result: Destroyed by as-41600 with Assembled Blade Performance ------------- Evolutions (1) 500 Regions Visited (4) 800 Robots Destroyed (28) 140 Value Destroyed (486) 486 Prototype IDs (2) 40 Alien Tech Used (0) 0 Bonus (0) 0 TOTAL SCORE: 1966 Bonus ------- None Cogmind --------- Core Integrity 0/400 Matter 295/300 Energy 100/100 System Corruption 0% Temperature Cool (0) Movement Core (50) Location -9/Mines Parts ------- > --- POWER (1) -------- (None) > --- PROPULSION (4) --- (None) > --- UTILITY (2) ------ (None) > --- WEAPON (2) ------- (None) > --- INVENTORY (5) ---- Light Ion Engine VTOL Module Improved Heat Sink Improved Light Armor Plating Assault Cannon Peak State ------------ > --- POWER ------------ Improved Ion Engine > --- PROPULSION ------- Light Treads Light Treads > --- UTILITY ---------- Signal Interpreter Improved Light Armor Plating > --- WEAPON ----------- Heavy Assault Rifle Heavy Mace > --- INVENTORY -------- Light Ion Engine VTOL Module Improved Heat Sink Improved Light Armor Plating Assault Cannon [Rating: 14] Favorites ----------- Power Light Ion Engine Engine Light Ion Engine Propulsion Aluminum Leg Treads Light Treads Leg Aluminum Leg Flight Unit VTOL Module Utility Signal Interpreter Processor Signal Interpreter Protection Improved Light Armor Plating Weapon Heavy Assault Rifle Energy Gun Particle Gun Ballistic Gun Heavy Assault Rifle Ballistic Cannon Improved Light Cannon Launcher Rocket Launcher Impact Weapon Heavy Mace Build | -11 -10 -10 -9 -9 ------- Run | Yrd Mat Min Mat Min Slots Evolved 2 | . . . 2 . Power . | . . . . . Propulsion 2 | . . . 2 . Utility . | . . . . . Weapon . | . . . . . Parts Attached 29 | 8 5 2 7 7 Power 8 | 2 1 . 2 3 Engine 8 | 2 1 . 2 3 Core . | . . . . . Reactor . | . . . . . Propulsion 8 | 4 1 . 1 2 Treads 4 | 2 . . . 2 Leg 3 | 2 1 . . . Wheel . | . . . . . Hover . | . . . . . Flight 1 | . . . 1 . Utility 4 | . 2 . 2 . Device . | . . . . . Storage . | . . . . . Processor 2 | . 2 . . . Hackware . | . . . . . Protection 2 | . . . 2 . Artifact . | . . . . . Weapon 9 | 2 1 2 2 2 Energy Gun 1 | . 1 . . . Energy Cannon . | . . . . . Ballistic Gun 4 | 2 . 1 1 . Ballistic Cannon 1 | . . . . 1 Launcher 1 | . . . . 1 Special Weapon . | . . . . . Impact Weapon 2 | . . 1 1 . Slashing Weapon . | . . . . . Piercing Weapon . | . . . . . Special Melee Weapon . | . . . . . Unidentified Prototypes . | . . . . . Parts Lost 10 | . 1 1 1 7 Power 3 | . 1 . . 2 Propulsion 3 | . . . 1 2 Utility 2 | . . 1 . 1 Weapon 2 | . . . . 2 Highest Loss Streak 4 | . 1 1 1 4 To Critical Strikes . | . . . . . Average Slot Usage (%) 76 | . 90 95 74 67 Engine 10 | . 8 14 11 10 Treads 3 | . . . . 11 Leg 17 | . 28 28 19 3 Processor 11 | . 13 14 11 11 Protection 9 | . 11 9 10 8 Energy Gun 1 | . 3 12 . . Ballistic Gun 11 | . 24 14 11 4 Ballistic Cannon 1 | . . . . 4 Impact Weapon 8 | . . 1 11 11 Peak Build Rating 14 | 5 8 8 13 14 Average Rating 8 | . 6 7 10 11 On Entrance 6 | . 5 8 6 12 Naked Turns . | . . . . . Heaviest Build 17 | 8 10 10 15 17 Greatest Support 40 | 40 20 20 20 40 Greatest Overweight (x) 1 | . . . 1 1 Average Overweight (x) . | . . . . . Largest Inventory Capacity 5 | 5 5 5 5 5 Average Capacity 5 | 5 5 5 5 5 Most Carried 5 | 3 5 5 5 5 Average Carried 3 | . 4 4 4 4 Final Capacity 5 | 5 5 5 5 5 Final Carried 5 | 3 4 5 5 5 Class Distribution -------------------- 100% | Mutant Dominant Class ---------------- Mutant | -10/Materials Mutant | -10/Mines Mutant | -9/Materials Mutant | -9/Mines Resources | -11 -10 -10 -9 -9 ----------- Run | Yrd Mat Min Mat Min Matter Collected 639 | 215 237 30 70 87 Remotely . | . . . . . Salvage Created 843 | . 498 46 267 32 Parts 46 | . 24 6 9 7 Haulers Intercepted 2 | . 1 . 1 . Recyclers Shooed 2 | . 2 . . . Parts Field Recycled . | . . . . . Retrieved Matter . | . . . . . Parts Self-Destructed . | . . . . . Prevented . | . . . . . Kills | -11 -10 -10 -9 -9 ------- Run | Yrd Mat Min Mat Min Combat Hostiles Destroyed 17 | . 5 3 4 5 Melee 1 | . . . 1 . Guns 8 | . 5 3 . . AOE 5 | . . . . 5 Classes Destroyed 9 | . 6 . 1 2 Worker 3 | . 2 . 1 . Tunneler 1 | . . . . 1 Hauler 2 | . 1 . 1 . Recycler 3 | . 3 . . . Watcher 2 | . 1 . 1 . Swarmer 10 | . 3 3 . 4 Grunt 4 | . 2 . 2 . Sentry 2 | . . . 2 . Demolisher 1 | . . . . 1 Best Kill Streak 9 | . 9 3 2 4 Combat Bots Only 4 | . 3 3 2 4 Max Kills in Single Turn 4 | . 2 1 1 4 Gunslinging 1 | . 1 . . . Exploded 4 | . . . . 4 Melee 1 | . . . 1 . Uniques/NPCs Destroyed . | . . . . . Combat | -11 -10 -10 -9 -9 -------- Run | Yrd Mat Min Mat Min Hostile Shots Fired 134 | . 28 20 43 43 Missed 37 | . 6 7 12 12 Damage Taken 1739 | . 261 92 409 977 Core 451 | . 16 22 136 277 Absorbed by Shields . | . . . . . Core Remaining (%) 92 | 100 . 84 . . Volleys Fired 47 | . 33 10 . 4 Largest 2 | . 2 2 . 1 Hottest 85 | . 40 85 . 33 Shots Fired 90 | . 66 20 . 4 Gun 86 | . 66 20 . . Cannon . | . . . . . Launcher 4 | . . . . 4 Special . | . . . . . Kinetic 76 | . 66 10 . . Thermal 10 | . . 10 . . Explosive 4 | . . . . 4 Electromagnetic . | . . . . . Robot Hit Streak 6 | . 6 2 . 4 Robot Miss Streak 4 | . 2 4 . 2 Penetration Max . | . . . . . Secondary Targets 3 | . 2 1 . . Max Gunslinging Chain 1 | . 1 1 . . Shots Hit Robots 80 | . 39 8 29 4 Core Hits 40 | . 25 4 3 8 Critical Kills . | . . . . . Critical Parts Destroyed 4 | . . . 4 . Critical Strikes 7 | . . . 7 . Smash 7 | . . . 7 . Melee Attacks 44 | . . . 37 7 Impact 44 | . . . 37 7 Slashing . | . . . . . Piercing . | . . . . . Sneak Attacks 3 | . . . 3 . Combat Hostiles . | . . . . . Follow-up Attacks . | . . . . . Damage Inflicted 1986 | . 573 93 947 373 Guns 511 | . 418 93 . . Cannons . | . . . . . Explosions 429 | . 155 . . 274 Melee 1040 | . . . 947 93 Ramming 6 | . . . . 6 Kinetic 451 | . 418 33 . . Thermal 60 | . . 60 . . Explosive 274 | . . . . 274 Electromagnetic 155 | . 155 . . . Impact 1040 | . . . 947 93 Slashing . | . . . . . Piercing . | . . . . . Highest Corruption . | . . . . . Average Corruption . | . . . . . Corruption Purged . | . . . . . Corruption Blocked . | . . . . . Overload Shots . | . . . . . Overflow Damage 143 | . . . 143 . Projectiles . | . . . . . Explosions . | . . . . . Melee 143 | . . . 143 . Knockbacks 4 | . . . 1 3 Impact 3 | . . . 1 2 Kinetic . | . . . . . Secondary 1 | . . . . 1 Self-Inflicted Damage 85 | . 56 . . 29 Shots 3 | . 2 . . 1 Rammed 1 | . . . . 1 Targets Rammed 1 | . . . . 1 Kicked . | . . . . . Crushed . | . . . . . Highest Temperature 281 | . 11 281 8 . Average Temperature 85 | . 2 140 8 . Received Heat Transfer 213 | . 57 . 156 . Effects 3 | . . 3 . . Interference 3 | . . 3 . . Siege Activations . | . . . . . Robots Corrupted 3 | . . . 3 . Combat Hostiles 3 | . . . 3 . Parts Fried 6 | . . . 6 . Impact Corruptions 10 | . . . 10 . Robots Melted . | . . . . . Combat Hostiles . | . . . . . Parts Melted . | . . . . . Heat Transferred 148 | . . 148 . . Parts Sabotaged . | . . . . . Parts Stolen . | . . . . . Parts Stripped . | . . . . . Power Chain Reactions 2 | . 2 . . . Alert | -11 -10 -10 -9 -9 ------- Run | Yrd Mat Min Mat Min Peak Influence 221 | . 221 151 132 177 Initial 85 | . . 85 58 50 Average 68 | . 114 111 91 56 Maximum Alert Level 1 | . 1 . . . Low Security (%) 93 | 100 56 100 100 100 Level 1 6 | . 43 . . . Level 2 . | . . . . . Level 3 . | . . . . . Level 4 . | . . . . . Level 5 . | . . . . . High Security . | . . . . . Max Security . | . . . . . Squads Dispatched 3 | . 1 . 2 . Investigation 2 | . 1 . 1 . Extermination . | . . . . . Reinforcement 1 | . . . 1 . Assault . | . . . . . Garrison . | . . . . . Intercept . | . . . . . Searches Triggered . | . . . . . Construction Impeded . | . . . . . Haulers Reinforced . | . . . . . Active Scanning Responses . | . . . . . Cargo Convoy Interrupts . | . . . . . Stealth | -11 -10 -10 -9 -9 --------- Run | Yrd Mat Min Mat Min Distress Signals 3 | . . . 3 . Communications Jammed . | . . . . . Distress Signals . | . . . . . Times Spotted 37 | . 8 3 10 16 Peak Tracking Total 4 | . 3 3 3 4 Tactical Retreats 2 | . . . 1 1 Traps | -11 -10 -10 -9 -9 ------- Run | Yrd Mat Min Mat Min Traps Triggered . | . . . . . Indirectly . | . . . . . Trap Hack Attempts . | . . . . . Triggered . | . . . . . Disarmed . | . . . . . Reprogrammed . | . . . . . Reused . | . . . . . Traps Extracted . | . . . . . Installed . | . . . . . Triggered . | . . . . . Machines | -11 -10 -10 -9 -9 ---------- Run | Yrd Mat Min Mat Min Machines Disabled 3 | . 3 . . . Max in Single Turn 2 | . 2 . . . Machines Repaired . | . . . . . Machines Dismantled . | . . . . . Machines Sabotaged . | . . . . . Overloaded Fab Kills . | . . . . . Hacking | -11 -10 -10 -9 -9 --------- Run | Yrd Mat Min Mat Min Machines Accessed 8 | . 3 1 4 . Terminals 7 | . 2 1 4 . Fabricators . | . . . . . Repair Stations 1 | . 1 . . . Recycling Units . | . . . . . Scanalyzers . | . . . . . Garrison Access . | . . . . . Total Hacks 29 | . 11 3 15 . Successful 14 | . 4 1 9 . Failed 15 | . 7 2 6 . Catastrophic . | . . . . . Database Lockouts . | . . . . . Manual 25 | . 10 3 12 . Terminals 28 | . 10 3 15 . Fabricators . | . . . . . Repair Stations 1 | . 1 . . . Recycling Units . | . . . . . Scanalyzers . | . . . . . Garrison Access . | . . . . . Terminal Hacks 6 | . . 1 5 . Robot Analysis 2 | . . 1 1 . Prototype ID Bank 1 | . . . 1 . Branch Access Points 1 | . . . 1 . Hauler Manifests 1 | . . . 1 . Zone Layout 1 | . . . 1 . Fabricator Hacks . | . . . . . Repair Station Hacks 1 | . 1 . . . Refit 1 | . 1 . . . Recycling Unit Hacks . | . . . . . Scanalyzer . | . . . . . Garrison Access Hacks . | . . . . . Unauthorized Hacks 6 | . 2 . 4 . Terminals 6 | . 2 . 4 . Track 1 | . . . 1 . Assimilate 1 | . . . 1 . Botnet 4 | . 2 . 2 . Fabricators . | . . . . . Repair Stations . | . . . . . Recycling Units . | . . . . . Scanalyzers . | . . . . . Garrison Access . | . . . . . Data Cores Recovered . | . . . . . Used . | . . . . . Hacking Detections 7 | . 2 1 4 . Full Trace Events 3 | . 2 . 1 . Feedback Events . | . . . . . Feedback Blocked . | . . . . . Robot Schematics Acquired . | . . . . . Robots Built . | . . . . . Authchips . | . . . . . Time . | . . . . . Total Robot Build Rating . | . . . . . Part Schematics Acquired . | . . . . . Parts Built . | . . . . . Authchips . | . . . . . Time . | . . . . . Total Part Build Rating . | . . . . . Parts Repaired . | . . . . . Time . | . . . . . Parts Recycled . | . . . . . Recycled Matter . | . . . . . Retrieved Matter . | . . . . . Retrieved Components . | . . . . . Parts Scanalyzed . | . . . . . Part Schematics Acquired . | . . . . . Parts Damaged . | . . . . . Bothacking | -11 -10 -10 -9 -9 ------------ Run | Yrd Mat Min Mat Min Used RIF Installer . | . . . . . Robots Hacked . | . . . . . Non-combat . | . . . . . Combat . | . . . . . Robot Hacks Applied . | . . . . . Relay Couplers Released . | . . . . . Fabnet Peak Effective % . | . . . . . Robots Rewired . | . . . . . Allies Hacked . | . . . . . Hacks Repelled . | . . . . . Allies | -11 -10 -10 -9 -9 -------- Run | Yrd Mat Min Mat Min Total Allies 1 | . . . 1 . Largest Group 1 | . . . 1 . Highest-Rated Group 10 | . . . 10 . Highest-Rated Ally 10 | . . . 10 . Total Orders . | . . . . . Ally Attacks . | . . . . . Total Damage . | . . . . . Kills . | . . . . . Allies Corrupted . | . . . . . Allies Melted . | . . . . . Intel | -11 -10 -10 -9 -9 ------- Run | Yrd Mat Min Mat Min Robot Analysis Total 2 | . . 1 1 . Derelict Logs Recovered 1 | . . 1 . . Drone Launches . | . . . . . Drone Recoveries . | . . . . . Exploration | -11 -10 -10 -9 -9 ------------- Run | Yrd Mat Min Mat Min Turns Passed 2028 | 441 310 93 733 451 Spaces Moved 918 | 50 167 50 421 230 Core 5 | 5 . . . . Treads 196 | 43 . . . 153 Legs 717 | 2 167 50 421 77 Wheels . | . . . . . Hover . | . . . . . Flight . | . . . . . Fastest Speed 50 | 50 120 120 120 160 Average Speed 138 | 147 120 120 130 170 Slowest Speed 190 | 160 120 120 190 190 Overloaded Moves . | . . . . . Propulsion Burnouts . | . . . . . Robots Hopped . | . . . . . Cave-ins Triggered . | . . . . . Exploration Rate (%) 32 | 8 34 20 40 58 Regions Visited 4 Branch Regions 2 Pre-discovered Areas . | . . . . . Known Exits Taken 2 | . 1 . 1 . Unknown Exits Taken 2 | 1 . 1 . . Scrap Searched 1 | . . . . 1 Spaces Dug . | . . . . . Terrain Destroyed 29 | . 2 . . 27 Melee . | . . . . . Projectile . | . . . . . AOE 29 | . 2 . . 27 Terrain Rammed . | . . . . . Walls Destroyed . | . . . . . Machines Disabled . | . . . . . Actions | -11 -10 -10 -9 -9 --------- Run | Yrd Mat Min Mat Min Total 1508 | 413 215 65 543 272 Wait 450 | 354 6 2 67 21 Move 914 | 49 166 49 420 230 Hop . | . . . . . Pick Up 9 | 2 3 1 3 . Fast Attach 11 | 5 2 . 2 2 Attach 1 | . . . . 1 Detach 1 | . . . 1 . Swap 17 | 3 3 2 5 4 Drop 13 | . 2 1 8 2 Fire 47 | . 33 10 . 4 Melee 44 | . . . 37 7 Ram 1 | . . . . 1 Kick . | . . . . . Crush . | . . . . . Escape Stasis . | . . . . . Rewire . | . . . . . Trap . | . . . . . Miscellaneous . | . . . . . Route ------- -11/Scrapyard -10/Materials -10/Mines -9/Materials (discovered 4 exits: *Mat x2 / *Min x2) -9/Mines (discovered 1 exit: *Mat) History --------- Turn | Location | Event 356 | -11/Scrapyard | Discovered new exit (range 15) 442 | -11/Scrapyard | Entered Materials 460 | -10/Materials | Build established: Mutant 733 | -10/Materials | Discovered new exit (range 11) 749 | -10/Materials | Identified exit to Mines 752 | -10/Materials | Entered Mines 778 | -10/Mines | Learned 2 Materials zone layouts 786 | -10/Mines | Discovered new exit (range 14) 845 | -10/Mines | Entered Materials 845 | -9/Materials | Evolved 2 slots: Propulsion x2 846 | -9/Materials | Identified exit to Materials 966 | -9/Materials | Identified exit to Mines 1249 | -9/Materials | Discovered exit to Materials (range 3) 1578 | -9/Materials | Entered Mines 1713 | -9/Mines | Joined a pair of Derelicts in attacking an 0b10 outpost 1867 | -9/Mines | Assembled infested the area 1872 | -9/Mines | Assisted by a Guerilla fighting off Assembled 1907 | -9/Mines | Core integrity fell below 50% 1924 | -9/Mines | Received a Rocket Launcher from a helpful Derelict 1937 | -9/Mines | Lost 3 allies 1953 | -9/Mines | Lost 3 parts (1p1n1u) 1959 | -9/Mines | Discovered exit to Materials (range 7) 2028 | -9/Mines | Core integrity fell below 20% 2029 | -9/Mines | Destroyed by as-41600 with Assembled Blade Last Messages --------------- 01933_ D-53 Grenadier destroyed. 01935_ The unstable cave ceiling collapses. 01959_ EXIT=FOUND: MATERIALS 01959_ C-30 ARC bursts open, deploying its payload. 01959_ S-10 Pest unfolds itself. 01962_ S-10 Pest destroyed. 01968_ U-05 Engineer lays Concrete. 01975_ Acquired 6 matter. 01976_ U-05 Engineer lays Concrete. 01977_ Acquired 40 matter. 01977_ U-05 Engineer lays Concrete. 01983_ Acquired 1 matter. 01993_ K-01 Serf collects debris. 02020_ Rocket Launcher destroyed. 02023_ as-70794 knocked back. 02026_ Lgt. Ion Engine destroyed. 02026_ Lgt. Treads destroyed. 02027_ Hvy. Mace destroyed. 02028_ Slammed into as-41600. 02029_ Signal Interpreter severed. Map ----- +----------------------------------------------------+ | | | | | | | | | | | | | | | | | | | | | | | | | | | ?????????????????????????????????????????????????? | | ?????????????????????????????????????????????????? | | ?????????????????????????????????????????????????? | | ?????????????????????????????????????????????????? | | ?????????????????????????????????????????????????? | | ?????????????????????????????????????????????????? | | ??????????????????????????????????????#######????? | | ?????????????????????????????########## ##???? | | ???????????????????####??????# %* ##??? | | ????????????????#### #?????# ##### ## [< #??? | | ????????????????# #????# #???# ## = ##??? | | ????????????????# ##### #???# ## [ #??? | | ????????????????# a@ #???# ## ##??? | | ?????????????????# a######???# ### ##???? | | ?????????????????## =%#????????# #?# #???? | | ??????????????????# !#????????# #?# #???? | | ???????????????#### a #????????# #### ##???? | | ??????????????## !% ##???????# ##????? | | ??????????????# * ##??????# #######?????? | | ????????"?????# #??????# #???????????? | | ???????? ?#??## % ##?????# #???????????? | | ????????? # ###### ##????# #???????????? | | ??????????? #?#### ###?????????? | | ????????????# # # a ### # #?????????? | | ????????????# # # = = ####??????? | | ????????????# %! #??????? | | ????????????# % # #??????? | | ????????????# * # # ] ##??????? | | ????????????# *% # ###???????? | | ????????????# ] # # #????????? | | ????????????## # # #######???? | | ??????????????# # #### ### ##"[/"##??? | | ??????????????## #### ###?# ##??# ###""[!""#??? | | ?????????????## ##?# #???# #???## ###?#=!! !%#??? | | ????????????## ### #???# #????##????##%[*[##??? | | ????????????# #??? #?????????####++####?? | | ????????????# #???##?????????## ### | +----------------------------------------------------+ Best States ------------- Heat Dissipation 28 Energy Generation 12 Energy Capacity 265 Matter Stores 300 Matter Capacity 300 Sight Range 16 Terrain Scan Density 10 Armor Coverage 150 Evasion (%) 55 Targeting Accuracy 5 Recoil Reduction 2 Item Schematics ----------------- None Robot Schematics ------------------ None Fabricated ------------ Nothing Alien Tech Used ----------------- None Achievements -------------- None Challenges ------------ None Game ------ Seed WeaponsPropulsionOptics Manual? 0 Play Time 00:16:58 Cumulative 32.9 hours Start 2024.10.12 @ 21:56:30 End 2024.10.12 @ 22:10:33 Sessions 1 Manual Loads 0 Difficulty Rogue Special Mode None Game No. 124 Rogue 124 Adventurer 0 Explorer 0 Win Type - Total 0 Types 0/0/0/0/0/0/0/0/0 Lore% 44 Gallery% 30 Achievement% 33 Wizard Run 0 Options --------- Layout 0 ASCII 0 Keyboard 0 Movement Arrows Keybinds 0 Fullscreen 1 Font 24/Terminus Map View 64x52 Zoom Use 0% Tactical HUD 1 Map Filters NONE Filters NONE Steam 1 RUN: d9daebb5-b64f-49a7-9ba6-490d51874de5